[Event "XI Paracin Festival 2018"]
[Site "Paracin"]
[Date "2018.07.07"]
[Round "3"]
[White "Raja, Rithvik R"]
[Black "Tugstumur, Yesuntumur"]
[Result "1-0"]
[ECO "E69"]
[WhiteElo "2343"]
[BlackElo "2116"]
[Annotator "NA"]
[PlyCount "115"]
[EventDate "2018.07.06"]
[EventType "swiss"]
[EventCountry "SRB"]
[SourceTitle "playchess.com"]
[Source "ChessBase"]
[SourceQuality "1"]
[TimeControl "5400+30"]

1. Nf3 {[%emt 0:00:00]} Nf6 {[%emt 0:00:00]} 2. c4 {[%emt 0:00:00]} g6 {[%emt 0:00:00]} 3. g3 {[%emt 0:00:00]} Bg7 {[%emt 0:00:00]} 4. Bg2 {[%emt 0:00:00]} O-O {[%emt 0:00:11]} 5. O-O {[%emt 0:00:00]} d6 {[%emt 0:00:15]} 6. d4 {[%emt 0:00:00]} Nbd7 {[%emt 0:00:10]} 7. Nc3 {[%emt 0:00:02]} e5 {[%emt 0:00:11]} 8. e4 {[%emt 0:00:02]} c6 {[%emt 0:00:10]} 9. h3 {[%emt 0:00:05]} Qa5 {[%emt 0:00:12]} 10. Re1 {[%emt 0:02:20]} exd4 {[%emt 0:00:17]} 11. Nxd4 {[%emt 0:00:04]} Ne5 {[%emt 0:00:10]} 12. Bf1 {[%emt 0:00:45]} Qb6 {[%emt 0:00:40]} 13. Kg2 {[%emt 0:02:36]} c5 {[%emt 0:08:06]} 14. Nc2 {[%emt 0:02:28]} Be6 {[%emt 0:02:00]} 15. b3 {[%emt 0:00:56]} Nfd7 {[%emt 0:05:46]} 16. Nd5 {[%emt 0:10:24]} Bxd5 {[%emt 0:00:15]} 17. exd5 {[%emt 0:00:08]} f5 {[%emt 0:02:00]} 18. Rb1 {[%emt 0:03:17]} Nf6 {[%emt 0:02:04]} 19. Bb2 {[%emt 0:03:44]} Rae8 {[%emt 0:02:38]} 20. b4 {[%emt 0:06:31]} cxb4 {[%emt 0:04:01]} 21. Bxe5 {[%emt 0:06:07]} dxe5 {[%emt 0:02:59]} 22. Nxb4 {[%emt 0:00:21]} Ne4 {[%emt 0:03:08]} 23. Nd3 {[%emt 0:06:16]} Qd4 {[%emt 0:00:48]} 24. Rxb7 {[%emt 0:12:37]} f4 {[%emt 0:01:31]} 25. Qa1 {[%emt 0:05:11]} f3+ {[%emt 0:03:12]} 26. Kg1 {[%emt 0:03:21]} Qxa1 {[%emt 0:00:57]} 27. Rxa1 {[%emt 0:00:02]} Nd6 {[%emt 0:01:48]} 28. Rxa7 {[%emt 0:08:02]} e4 {[%emt 0:02:16]} 29. Rxg7+ {[%emt 0:00:15]} Kxg7 {[%emt 0:00:05]} 30. Nf4 {[%emt 0:00:03]} Kf6 {[%emt 0:05:52]} 31. c5 {[%emt 0:04:45]} Nf5 {[%emt 0:00:48]} 32. d6 {[%emt 0:00:38]} Rc8 {[%emt 0:02:35]} 33. Nd5+ {[%emt 0:01:39]} Ke6 {[%emt 0:01:44]} 34. Nc7+ {[%emt 0:01:18]} Rxc7 {[%emt 0:00:25]} 35. dxc7 {[%emt 0:00:05]} Rc8 {[%emt 0:00:06]} 36. a4 {[%emt 0:01:07]} Rxc7 {[%emt 0:00:27]} 37. a5 {[%emt 0:00:04]} Kd5 {[%emt 0:03:07]} 38. a6 {[%emt 0:00:27]} Ra7 {[%emt 0:00:06]} 39. Rb1 {[%emt 0:06:32]} Nd4 {[%emt 0:00:40]} 40. Re1 {[%emt 0:03:17]} g5 {[%emt 0:03:18]} 41. g4 {[%emt 0:00:51]} Ne6 {[%emt 0:02:24]} 42. c6 {[%emt 0:00:49]} Nd4 {[%emt 0:05:57]} 43. Rd1 {[%emt 0:00:28]} Rc7 {[%emt 0:04:13]} 44. Kh2 {[%emt 0:01:12]} Ke5 {[%emt 0:03:40]} 45. Rc1 {[%emt 0:00:24]} Ne6 {[%emt 0:06:08]} 46. Rb1 {[%emt 0:02:05]} Kd6 {[%emt 0:03:01]} 47. Rb7 {[%emt 0:00:38]} Kxc6 {[%emt 0:01:28]} 48. Bb5+ {[%emt 0:00:06]} Kc5 {[%emt 0:02:39]} 49. a7 {[%emt 0:00:20]} Rxb7 {[%emt 0:00:04]} 50. a8=Q {[%emt 0:00:04]} Rxb5 {[%emt 0:00:05]} 51. Qc8+ {[%emt 0:00:04]} Kd6 {[%emt 0:00:12]} 52. Qa6+ {[%emt 0:00:02]} Kc5 {[%emt 0:00:18]} 53. Qxe6 {[%emt 0:00:05]} Kd4 {[%emt 0:00:37]} 54. Qf6+ {[%emt 0:00:30]} Kd3 {[%emt 0:00:42]} 55. Qa6 {[%emt 0:00:04]} Kc4 {[%emt 0:00:16]} 56. Qc6+ {[%emt 0:00:03]} Kb4 {[%emt 0:00:50]} 57. Qxe4+ {[%emt 0:00:05]} Ka5 {[%emt 0:00:11]} 58. Qxh7 {[%emt 0:00:05]} 1-0

[Event "XI Paracin Festival 2018"]
[Site "Paracin"]
[Date "2018.07.07"]
[Round "3"]
[White "Eric, Jovana"]
[Black "Atalik, Suat"]
[Result "0-1"]
[ECO "C11"]
[WhiteElo "2342"]
[BlackElo "2512"]
[Annotator "ChessBase"]
[PlyCount "82"]
[EventDate "2018.07.06"]
[EventType "swiss"]
[EventCountry "SRB"]
[SourceTitle "playchess.com"]
[Source "ChessBase"]
[SourceQuality "1"]
[TimeControl "5400+30"]

1. e4 {[%emt 0:00:30]} e6 {[%emt 0:00:00]} 2. d4 {[%emt 0:00:41]} d5 {[%emt 0:00:00]} 3. Nc3 {[%emt 0:00:16]} Nf6 {[%emt 0:00:32]} 4. e5 {[%emt 0:00:15]} Nfd7 {[%emt 0:00:17]} 5. f4 {[%emt 0:00:17]} c5 {[%emt 0:00:12]} 6. Nf3 {[%emt 0:00:18]} Nc6 {[%emt 0:00:10]} 7. Be3 {[%emt 0:00:19]} Be7 {[%emt 0:01:09]} 8. Qd2 {[%emt 0:02:26]} O-O {[%emt 0:01:28]} 9. Be2 {[%emt 0:00:28]} b6 {[%emt 0:03:48]} 10. O-O {[%emt 0:01:32]} f5 {[%emt 0:04:23]} 11. Nd1 {[%emt 0:05:59]} cxd4 {[%emt 0:01:09]} 12. Nxd4 {[%emt 0:00:06]} Nxd4 {[%emt 0:01:27]} 13. Bxd4 {[%emt 0:00:14]} Nc5 {[%emt 0:01:17]} 14. Nf2 {[%emt 0:04:01]} Bb7 {[%emt 0:00:43]} 15. c3 {[%emt 0:01:28]} Qc8 {[%emt 0:04:21]} 16. Rfe1 {[%emt 0:10:44]} Ba6 {[%emt 0:03:19]} 17. Bf3 {[%emt 0:00:37]} Qe8 {[%emt 0:03:22]} 18. Qe3 {[%emt 0:04:03]} Rd8 {[%emt 0:01:34]} 19. Kh1 {[%emt 0:01:55]} Qg6 {[%emt 0:05:50]} 20. b4 {[%emt 0:07:48]} Rc8 {[%emt 0:07:25]} 21. Rg1 {[%emt 0:03:55]} Ne4 {[%emt 0:03:16]} 22. a4 {[%emt 0:02:59]} Bc4 {[%emt 0:00:37]} 23. a5 {[%emt 0:00:30]} Bd8 {[%emt 0:02:42]} 24. Nh3 {[%emt 0:23:33]} bxa5 {[%emt 0:01:14]} 25. Bxa7 {[%emt 0:02:05]} axb4 {[%emt 0:03:05]} 26. cxb4 {[%emt 0:00:04]} Be7 {[%emt 0:01:24]} 27. Rgb1 {[%emt 0:02:16]} Qe8 {[%emt 0:02:06]} 28. Qb6 {[%emt 0:05:39]} Qd7 {[%emt 0:08:32]} 29. Bxe4 {[%emt 0:01:39]} fxe4 {[%emt 0:01:19]} 30. Qd4 {[%emt 0:04:52]} h6 {[%emt 0:00:35]} 31. Bb6 {[%emt 0:00:46]} Rf7 {[%emt 0:03:06]} 32. Ra7 {[%emt 0:00:20]} Qc6 {[%emt 0:02:07]} 33. Ra5 {[%emt 0:05:56]} Bd3 {[%emt 0:01:12]} 34. b5 {[%emt 0:01:24]} Qe8 {[%emt 0:00:47]} 35. Rb2 {[%emt 0:01:45]} Rc1+ {[%emt 0:02:24]} 36. Ng1 {[%emt 0:00:02]} Rxf4 {[%emt 0:00:35]} 37. Qa4 {[%emt 0:00:02]} Qh5 {[%emt 0:01:45]} 38. h3 {[%emt 0:01:54]} Rff1 {[%emt 0:02:46]} 39. Ra8+ {[%emt 0:00:13]} Kh7 {[%emt 0:00:34]} 40. Be3 {[%emt 0:00:29]} Rxg1+ {[%emt 0:00:51]} 41. Bxg1 {[%emt 0:00:07]} Bc5 {[%emt 0:00:13]} 0-1

[Event "XI Paracin Festival 2018"]
[Site "Paracin"]
[Date "2018.07.07"]
[Round "3"]
[White "Kathmale, Sameer"]
[Black "Fernandez, Daniel Howard"]
[Result "1/2-1/2"]
[ECO "B22"]
[WhiteElo "2323"]
[BlackElo "2477"]
[Annotator "ChessBase"]
[PlyCount "57"]
[EventDate "2018.07.06"]
[EventType "swiss"]
[EventCountry "SRB"]
[SourceTitle "playchess.com"]
[Source "ChessBase"]
[SourceQuality "1"]
[TimeControl "5400+30"]

1. e4 {[%emt 0:00:00]} c5 {[%emt 0:14:12]} 2. c3 {[%emt 0:00:00]} d6 {[%emt 0:09:08]} 3. d4 {[%emt 0:00:58]} Nd7 {[%emt 0:00:02]} 4. Nf3 {[%emt 0:02:57]} e6 {[%emt 0:02:14]} 5. Bd3 {[%emt 0:00:44]} a6 {[%emt 0:00:09]} 6. O-O {[%emt 0:00:58]} Be7 {[%emt 0:01:36]} 7. a4 {[%emt 0:04:48]} Ngf6 {[%emt 0:02:05]} 8. Re1 {[%emt 0:03:16]} cxd4 {[%emt 0:01:54]} 9. cxd4 {[%emt 0:00:26]} e5 {[%emt 0:00:24]} 10. Nc3 {[%emt 0:10:57]} O-O {[%emt 0:00:03]} 11. a5 {[%emt 0:01:39]} exd4 {[%emt 0:04:25]} 12. Nxd4 {[%emt 0:01:14]} Ne5 {[%emt 0:00:11]} 13. h3 {[%emt 0:05:29]} Re8 {[%emt 0:00:59]} 14. Bf1 {[%emt 0:06:18]} Nc6 {[%emt 0:00:42]} 15. Nxc6 {[%emt 0:06:24]} bxc6 {[%emt 0:00:01]} 16. Be3 {[%emt 0:02:08]} c5 {[%emt 0:03:43]} 17. Bg5 {[%emt 0:19:35]} h6 {[%emt 0:02:54]} 18. Bh4 {[%emt 0:00:44]} Be6 {[%emt 0:02:56]} 19. Bg3 {[%emt 0:01:02]} d5 {[%emt 0:06:03]} 20. exd5 {[%emt 0:01:42]} Nxd5 {[%emt 0:00:01]} 21. Nxd5 {[%emt 0:02:06]} Qxd5 {[%emt 0:00:03]} 22. Qxd5 {[%emt 0:02:17]} Bxd5 {[%emt 0:00:02]} 23. Rad1 {[%emt 0:00:23]} Be6 {[%emt 0:01:37]} 24. Bd6 {[%emt 0:02:11]} Bxd6 {[%emt 0:01:20]} 25. Rxd6 {[%emt 0:00:02]} Reb8 {[%emt 0:00:08]} 26. Rc1 {[%emt 0:06:34]} c4 {[%emt 0:00:41]} 27. Bxc4 {[%emt 0:00:23]} Bxc4 {[%emt 0:00:01]} 28. Rxc4 {[%emt 0:00:16]} Rxb2 {[%emt 0:00:04]} 29. Rcc6 {[%emt 0:01:44]} 1/2-1/2

[Event "XI Paracin Festival 2018"]
[Site "Paracin"]
[Date "2018.07.07"]
[Round "3"]
[White "Cvetkovic, Nemanja"]
[Black "Harsha, Bharathakoti"]
[Result "0-1"]
[ECO "D37"]
[WhiteElo "2278"]
[BlackElo "2465"]
[Annotator "ChessBase"]
[PlyCount "66"]
[EventDate "2018.07.06"]
[EventType "swiss"]
[EventCountry "SRB"]
[SourceTitle "playchess.com"]
[Source "ChessBase"]
[SourceQuality "1"]
[TimeControl "5400+30"]

1. d4 {[%emt 0:00:00]} Nf6 {[%emt 0:00:18]} 2. c4 {[%emt 0:00:00]} e6 {[%emt 0:00:05]} 3. Nf3 {[%emt 0:00:00]} d5 {[%emt 0:00:12]} 4. Nc3 {[%emt 0:00:27]} a6 {[%emt 0:01:03]} 5. cxd5 {[%emt 0:00:55]} exd5 {[%emt 0:00:04]} 6. Bg5 {[%emt 0:00:10]} Be6 {[%emt 0:00:04]} 7. e3 {[%emt 0:03:17]} Nbd7 {[%emt 0:00:47]} 8. Bd3 {[%emt 0:01:49]} Bd6 {[%emt 0:03:02]} 9. O-O {[%emt 0:00:29]} O-O {[%emt 0:03:21]} 10. Qc2 {[%emt 0:03:30]} h6 {[%emt 0:03:45]} 11. Bf4 {[%emt 0:05:43]} Qe7 {[%emt 0:00:13]} 12. h3 {[%emt 0:07:40]} Rac8 {[%emt 0:14:35]} 13. Ne5 {[%emt 0:04:17]} c5 {[%emt 0:01:42]} 14. Nxd7 {[%emt 0:00:54]} Nxd7 {[%emt 0:22:06]} 15. Bxd6 {[%emt 0:01:29]} Qxd6 {[%emt 0:00:03]} 16. dxc5 {[%emt 0:02:01]} Rxc5 {[%emt 0:02:18]} 17. Rfd1 {[%emt 0:03:50]} Rfc8 {[%emt 0:04:10]} 18. Be2 {[%emt 0:09:04]} Qc7 {[%emt 0:05:40]} 19. Rd4 {[%emt 0:03:44]} Ne5 {[%emt 0:10:34]} 20. Rad1 {[%emt 0:10:50]} Qe7 {[%emt 0:02:33]} 21. Qb3 {[%emt 0:19:51]} Nc6 {[%emt 0:04:19]} 22. Nxd5 {[%emt 0:00:34]} Qg5 {[%emt 0:01:54]} 23. R4d2 {[%emt 0:04:40]} Na5 {[%emt 0:02:53]} 24. Qa4 {[%emt 0:03:37]} Bxd5 {[%emt 0:05:09]} 25. Bg4 {[%emt 0:03:17]} Bc6 {[%emt 0:01:55]} 26. Qd4 {[%emt 0:08:53]} Rc4 {[%emt 0:01:48]} 27. Qb6 {[%emt 0:00:53]} Rxg4 {[%emt 0:01:56]} 28. hxg4 {[%emt 0:00:03]} Nc4 {[%emt 0:00:09]} 29. Rd8+ {[%emt 0:00:17]} Kh7 {[%emt 0:00:03]} 30. Qd4 {[%emt 0:01:12]} Rxd8 {[%emt 0:00:05]} 31. Qxd8 {[%emt 0:00:08]} Qxg4 {[%emt 0:00:18]} 32. Qd3+ {[%emt 0:01:08]} f5 {[%emt 0:00:58]} 33. f3 {[%emt 0:01:17]} Bxf3 {[%emt 0:00:07]} 0-1

[Event "XI Paracin Festival 2018"]
[Site "Paracin"]
[Date "2018.07.07"]
[Round "3"]
[White "Popovic, Milan S"]
[Black "Atakisi, Umut"]
[Result "1/2-1/2"]
[ECO "B27"]
[WhiteElo "2264"]
[BlackElo "2390"]
[Annotator "NA"]
[PlyCount "58"]
[EventDate "2018.07.06"]
[EventType "swiss"]
[EventCountry "SRB"]
[SourceTitle "playchess.com"]
[Source "ChessBase"]
[SourceQuality "1"]
[TimeControl "5400+30"]

1. e4 {[%emt 0:00:00]} c5 {[%emt 0:06:56]} 2. Nf3 {[%emt 0:00:00]} g6 {[%emt 0:00:07]} 3. g3 {[%emt 0:01:35]} Bg7 {[%emt 0:00:05]} 4. Bg2 {[%emt 0:00:02]} Nc6 {[%emt 0:00:07]} 5. O-O {[%emt 0:00:04]} d6 {[%emt 0:00:13]} 6. c3 {[%emt 0:01:49]} e5 {[%emt 0:00:13]} 7. d3 {[%emt 0:00:46]} Nge7 {[%emt 0:00:12]} 8. a3 {[%emt 0:00:05]} O-O {[%emt 0:00:22]} 9. b4 {[%emt 0:01:22]} h6 {[%emt 0:00:42]} 10. Bb2 {[%emt 0:01:15]} Be6 {[%emt 0:02:05]} 11. b5 {[%emt 0:09:10]} Na5 {[%emt 0:00:47]} 12. c4 {[%emt 0:04:46]} b6 {[%emt 0:04:33]} 13. Nfd2 {[%emt 0:06:38]} Qd7 {[%emt 0:14:24]} 14. Nc3 {[%emt 0:05:23]} Rae8 {[%emt 0:01:06]} 15. a4 {[%emt 0:02:02]} f5 {[%emt 0:01:11]} 16. f3 {[%emt 0:01:42]} h5 {[%emt 0:06:01]} 17. Nb3 {[%emt 0:09:25]} fxe4 {[%emt 0:27:28]} 18. fxe4 {[%emt 0:13:52]} Rxf1+ {[%emt 0:00:53]} 19. Bxf1 {[%emt 0:00:19]} Bh6 {[%emt 0:07:09]} 20. Bc1 {[%emt 0:04:37]} Nxb3 {[%emt 0:01:21]} 21. Qxb3 {[%emt 0:00:14]} Bxc1 {[%emt 0:00:07]} 22. Rxc1 {[%emt 0:00:01]} Kg7 {[%emt 0:00:28]} 23. Qa2 {[%emt 0:06:08]} h4 {[%emt 0:10:25]} 24. Bg2 {[%emt 0:04:38]} hxg3 {[%emt 0:00:57]} 25. hxg3 {[%emt 0:00:04]} Rh8 {[%emt 0:03:43]} 26. Rf1 {[%emt 0:03:01]} Nc8 {[%emt 0:03:43]} 27. Qf2 {[%emt 0:02:46]} Qe7 {[%emt 0:00:16]} 28. Qe3 {[%emt 0:03:49]} Kg8 {[%emt 0:00:36]} 29. Rf2 {[%emt 0:01:37]} Rh5 {[%emt 0:01:58]} 1/2-1/2

[Event "XI Paracin Festival 2018"]
[Site "Paracin"]
[Date "2018.07.07"]
[Round "3"]
[White "Popovic, Aleksandar M"]
[Black "Stankovic, Milos"]
[Result "0-1"]
[ECO "A05"]
[WhiteElo "2264"]
[BlackElo "2420"]
[Annotator "NA"]
[PlyCount "66"]
[EventDate "2018.07.06"]
[EventType "swiss"]
[EventCountry "SRB"]
[SourceTitle "playchess.com"]
[Source "ChessBase"]
[SourceQuality "1"]
[TimeControl "5400+30"]

1. Nf3 {[%emt 0:00:00]} Nf6 {[%emt 0:01:44]} 2. g3 {[%emt 0:00:17]} g6 {[%emt 0:00:32]} 3. b3 {[%emt 0:00:18]} d5 {[%emt 0:01:21]} 4. Bb2 {[%emt 0:01:21]} Bg7 {[%emt 0:00:23]} 5. c4 {[%emt 0:02:25]} c6 {[%emt 0:00:58]} 6. Bg2 {[%emt 0:00:09]} O-O {[%emt 0:00:47]} 7. O-O {[%emt 0:00:06]} Nbd7 {[%emt 0:00:45]} 8. d3 {[%emt 0:16:27]} Re8 {[%emt 0:05:27]} 9. Nc3 {[%emt 0:09:46]} e5 {[%emt 0:02:49]} 10. cxd5 {[%emt 0:03:53]} cxd5 {[%emt 0:01:56]} 11. Rc1 {[%emt 0:06:21]} Qa5 {[%emt 0:04:20]} 12. a3 {[%emt 0:02:07]} Bh6 {[%emt 0:22:24]} 13. b4 {[%emt 0:05:11]} Qa6 {[%emt 0:01:14]} 14. Nd2 {[%emt 0:04:12]} d4 {[%emt 0:00:59]} 15. Ncb1 {[%emt 0:20:18]} Nb6 {[%emt 0:02:51]} 16. Rc5 {[%emt 0:01:27]} Nbd7 {[%emt 0:06:57]} 17. Ra5 {[%emt 0:01:17]} Qe6 {[%emt 0:00:32]} 18. Nc4 {[%emt 0:00:20]} a6 {[%emt 0:01:46]} 19. b5 {[%emt 0:13:00]} b6 {[%emt 0:03:04]} 20. Bxa8 {[%emt 0:03:05]} bxa5 {[%emt 0:00:15]} 21. Bc6 {[%emt 0:01:38]} axb5 {[%emt 0:00:33]} 22. Nxa5 {[%emt 0:00:14]} Ba6 {[%emt 0:02:07]} 23. Bg2 {[%emt 0:04:12]} Rc8 {[%emt 0:01:03]} 24. Nd2 {[%emt 0:00:18]} Nb6 {[%emt 0:02:30]} 25. Ndb3 {[%emt 0:02:25]} Na4 {[%emt 0:01:22]} 26. Bc1 {[%emt 0:00:07]} Nc3 {[%emt 0:00:47]} 27. Qe1 {[%emt 0:00:04]} Bf8 {[%emt 0:00:52]} 28. Qd2 {[%emt 0:02:21]} Qb6 {[%emt 0:02:19]} 29. e3 {[%emt 0:00:18]} Bh6 {[%emt 0:00:28]} 30. Qe1 {[%emt 0:00:41]} Nfd5 {[%emt 0:01:58]} 31. exd4 {[%emt 0:00:28]} Bxc1 {[%emt 0:00:36]} 32. Qxe5 {[%emt 0:00:04]} Bh6 {[%emt 0:05:37]} 33. Bxd5 {[%emt 0:00:59]} Bg7 {[%emt 0:00:09]} 0-1

[Event "XI Paracin Festival 2018"]
[Site "Paracin"]
[Date "2018.07.07"]
[Round "3"]
[White "Bratkovic, Jakob"]
[Black "Petrov, Martin"]
[Result "0-1"]
[ECO "B94"]
[WhiteElo "2253"]
[BlackElo "2441"]
[Annotator "NA"]
[PlyCount "80"]
[EventDate "2018.07.06"]
[EventType "swiss"]
[EventCountry "SRB"]
[SourceTitle "playchess.com"]
[Source "ChessBase"]
[SourceQuality "1"]
[TimeControl "5400+30"]

1. e4 {[%emt 0:01:55]} c5 {[%emt 0:00:00]} 2. Nf3 {[%emt 0:00:23]} d6 {[%emt 0:00:00]} 3. d4 {[%emt 0:00:05]} cxd4 {[%emt 0:00:00]} 4. Nxd4 {[%emt 0:00:05]} Nf6 {[%emt 0:00:00]} 5. Nc3 {[%emt 0:00:06]} a6 {[%emt 0:00:00]} 6. Bg5 {[%emt 0:00:05]} Nbd7 {[%emt 0:01:43]} 7. f4 {[%emt 0:00:08]} e5 {[%emt 0:07:16]} 8. fxe5 {[%emt 0:11:01]} dxe5 {[%emt 0:00:24]} 9. Nf5 {[%emt 0:02:51]} Qb6 {[%emt 0:01:08]} 10. Qd2 {[%emt 0:12:20]} Qxb2 {[%emt 0:00:41]} 11. Rb1 {[%emt 0:00:48]} Qa3 {[%emt 0:00:08]} 12. Rb3 {[%emt 0:07:29]} Qc5 {[%emt 0:10:16]} 13. Be2 {[%emt 0:05:04]} b5 {[%emt 0:16:32]} 14. Bf3 {[%emt 0:10:59]} Bb7 {[%emt 0:07:52]} 15. Nd5 {[%emt 0:02:47]} Bxd5 {[%emt 0:03:59]} 16. exd5 {[%emt 0:00:12]} Rc8 {[%emt 0:00:08]} 17. Kd1 {[%emt 0:00:18]} g6 {[%emt 0:10:22]} 18. Nh6 {[%emt 0:02:09]} Be7 {[%emt 0:02:27]} 19. Re1 {[%emt 0:22:57]} Kf8 {[%emt 0:07:33]} 20. d6 {[%emt 0:03:50]} Bd8 {[%emt 0:07:03]} 21. Ree3 {[%emt 0:03:06]} e4 {[%emt 0:01:13]} 22. Rbc3 {[%emt 0:00:52]} Qxg5 {[%emt 0:00:10]} 23. Rxc8 {[%emt 0:00:23]} Kg7 {[%emt 0:00:07]} 24. Nxf7 {[%emt 0:03:12]} Kxf7 {[%emt 0:00:50]} 25. Bxe4 {[%emt 0:04:20]} Nxe4 {[%emt 0:05:48]} 26. Rf3+ {[%emt 0:02:02]} Ndf6 {[%emt 0:00:14]} 27. Qd4 {[%emt 0:00:22]} Kg7 {[%emt 0:02:02]} 28. Qa7+ {[%emt 0:02:42]} Kh6 {[%emt 0:00:06]} 29. Rh3+ {[%emt 0:00:39]} Nh5 {[%emt 0:00:06]} 30. Qe3 {[%emt 0:00:50]} Qxe3 {[%emt 0:00:46]} 31. Rxe3 {[%emt 0:00:06]} Nxd6 {[%emt 0:00:13]} 32. Rc6 {[%emt 0:00:21]} Nc4 {[%emt 0:00:27]} 33. Rh3 {[%emt 0:00:32]} Kg7 {[%emt 0:01:22]} 34. Rxa6 {[%emt 0:00:05]} Bb6 {[%emt 0:01:16]} 35. Rb3 {[%emt 0:00:07]} Rd8+ {[%emt 0:00:18]} 36. Ke1 {[%emt 0:00:07]} Re8+ {[%emt 0:01:48]} 37. Kd1 {[%emt 0:00:14]} Bf2 {[%emt 0:00:11]} 38. c3 {[%emt 0:00:08]} Re1+ {[%emt 0:00:45]} 39. Kc2 {[%emt 0:00:05]} Re2+ {[%emt 0:00:02]} 40. Kd3 {[%emt 0:00:10]} Nf4# {[%emt 0:00:05] Kd4} 0-1

[Event "XI Paracin Festival 2018"]
[Site "Paracin"]
[Date "2018.07.07"]
[Round "3"]
[White "Ivic, Matija"]
[Black "Arsovic, Zoran"]
[Result "1/2-1/2"]
[ECO "A31"]
[WhiteElo "2245"]
[BlackElo "2436"]
[Annotator "NA"]
[PlyCount "140"]
[EventDate "2018.07.06"]
[EventType "swiss"]
[EventCountry "SRB"]
[SourceTitle "playchess.com"]
[Source "ChessBase"]
[SourceQuality "1"]
[TimeControl "5400+30"]

1. Nf3 {[%emt 0:00:00]} c5 {[%emt 0:08:07]} 2. c4 {[%emt 0:00:00]} Nf6 {[%emt 0:04:27]} 3. d4 {[%emt 0:00:45]} cxd4 {[%emt 0:03:09]} 4. Nxd4 {[%emt 0:00:21]} b6 {[%emt 0:00:36]} 5. Nc3 {[%emt 0:00:54]} Bb7 {[%emt 0:00:13]} 6. f3 {[%emt 0:00:33]} d6 {[%emt 0:00:18]} 7. e4 {[%emt 0:00:11]} e6 {[%emt 0:00:11]} 8. Be3 {[%emt 0:00:29]} Be7 {[%emt 0:00:30]} 9. Be2 {[%emt 0:00:06]} O-O {[%emt 0:00:18]} 10. O-O {[%emt 0:00:06]} a6 {[%emt 0:01:17]} 11. Qd2 {[%emt 0:00:08]} Qc7 {[%emt 0:00:58]} 12. Rac1 {[%emt 0:00:25]} Nbd7 {[%emt 0:01:14]} 13. Rfd1 {[%emt 0:00:13]} Rac8 {[%emt 0:05:24]} 14. Bf2 {[%emt 0:02:37]} Qb8 {[%emt 0:01:51]} 15. Bf1 {[%emt 0:02:52]} Kh8 {[%emt 0:09:37]} 16. Re1 {[%emt 0:03:01]} Qa8 {[%emt 0:11:17]} 17. Na4 {[%emt 0:04:09]} Rfe8 {[%emt 0:02:13]} 18. Nb3 {[%emt 0:02:28]} Qb8 {[%emt 0:00:32]} 19. Qe3 {[%emt 0:02:00]} Bd8 {[%emt 0:01:02]} 20. Nc3 {[%emt 0:01:38]} Bc7 {[%emt 0:00:25]} 21. Qd2 {[%emt 0:05:38]} d5 {[%emt 0:04:30]} 22. cxd5 {[%emt 0:00:43]} Bxh2+ {[%emt 0:00:48]} 23. Kh1 {[%emt 0:00:01]} Bf4 {[%emt 0:03:51]} 24. Be3 {[%emt 0:00:09]} Bxe3 {[%emt 0:03:14]} 25. Rxe3 {[%emt 0:02:01]} exd5 {[%emt 0:02:22]} 26. exd5 {[%emt 0:01:38]} Rxe3 {[%emt 0:00:40]} 27. Qxe3 {[%emt 0:00:03]} Re8 {[%emt 0:00:47]} 28. Qd4 {[%emt 0:00:12]} Re5 {[%emt 0:09:00]} 29. d6 {[%emt 0:00:43]} Re6 {[%emt 0:00:00]} 30. Rd1 {[%emt 0:02:01]} Ne8 {[%emt 0:00:29]} 31. Qa4 {[%emt 0:00:45]} Qc8 {[%emt 0:14:49]} 32. Qb4 {[%emt 0:02:35]} Qb8 {[%emt 0:03:12]} 33. Qa4 {[%emt 0:00:24]} Qd8 {[%emt 0:01:50]} 34. Bxa6 {[%emt 0:00:44]} Rh6+ {[%emt 0:05:00]} 35. Kg1 {[%emt 0:00:05]} Bxf3 {[%emt 0:01:32]} 36. gxf3 {[%emt 0:00:38]} Qg5+ {[%emt 0:00:26]} 37. Kf1 {[%emt 0:06:42]} Rh1+ {[%emt 0:00:54]} 38. Ke2 {[%emt 0:02:45]} Rh2+ {[%emt 0:00:07]} 39. Kd3 {[%emt 0:00:29]} Ne5+ {[%emt 0:00:17]} 40. Kd4 {[%emt 0:00:41]} Nxf3+ {[%emt 0:01:49]} 41. Kc4 {[%emt 0:00:32]} Rh4+ {[%emt 0:00:22]} 42. Nd4 {[%emt 0:00:25]} Nxd6+ {[%emt 0:00:41]} 43. Kb3 {[%emt 0:00:47]} Ne5 {[%emt 0:00:38]} 44. Be2 {[%emt 0:04:55]} h5 {[%emt 0:00:18]} 45. Qa8+ {[%emt 0:00:19]} Kh7 {[%emt 0:00:07]} 46. Qd5 {[%emt 0:00:03]} Qe7 {[%emt 0:00:55]} 47. Nf3 {[%emt 0:01:26]} Nxf3 {[%emt 0:00:27]} 48. Bxf3 {[%emt 0:00:12]} Ne8 {[%emt 0:00:33]} 49. Bxh5 {[%emt 0:01:15]} Nf6 {[%emt 0:00:18]} 50. Qd3+ {[%emt 0:01:39]} g6 {[%emt 0:00:25]} 51. Bf3 {[%emt 0:00:13]} Qb4+ {[%emt 0:00:44]} 52. Kc2 {[%emt 0:00:05]} Rh2+ {[%emt 0:00:27]} 53. Be2 {[%emt 0:00:19]} Kg7 {[%emt 0:00:44]} 54. Rf1 {[%emt 0:02:00]} Qg4 {[%emt 0:00:30]} 55. Rxf6 {[%emt 0:05:25]} Rxe2+ {[%emt 0:00:06]} 56. Qxe2 {[%emt 0:00:03]} Qxe2+ {[%emt 0:00:07]} 57. Nxe2 {[%emt 0:00:01]} Kxf6 {[%emt 0:00:07]} 58. Kd3 {[%emt 0:00:15]} Ke5 {[%emt 0:00:09]} 59. Ng1 {[%emt 0:04:49]} g5 {[%emt 0:01:00]} 60. Ke3 {[%emt 0:00:53]} Kd5 {[%emt 0:01:05]} 61. Nh3 {[%emt 0:02:15]} f6 62. Kd3 {[%emt 0:00:47]} Ke5 {[%emt 0:00:57]} 63. a4 {[%emt 0:01:05]} g4 {[%emt 0:00:49]} 64. Ng1 {[%emt 0:00:22]} f5 {[%emt 0:00:20]} 65. b4 {[%emt 0:01:42]} f4 {[%emt 0:00:38]} 66. a5 {[%emt 0:00:13]} bxa5 {[%emt 0:00:30]} 67. bxa5 {[%emt 0:00:02]} Kd5 {[%emt 0:00:07]} 68. a6 {[%emt 0:00:04]} Kc6 {[%emt 0:00:05]} 69. Ke4 {[%emt 0:00:01]} f3 {[%emt 0:00:14]} 70. Nxf3 Kc5 1/2-1/2